{"text_format":"3","workbook":"xlsx","n_sheets":4,"sheets":["Сводный месячный бюджет","Доходы","Расходы на персонал","Операционные расходы"],"not_rendered":{"charts":1,"defined_names":14},"read":"whole","date_system":"1900"}

{"sheet":"Сводный месячный бюджет","index":0,"n_rows":17,"n_cols":5,"rows_kept":17,"merged":[[0,1,0,3],[1,1,1,3],[1,4,1,5]]}
[null,"НАЗВАНИЕ КОМПАНИИ"]
[null,"БЮДЖЕТ НА МЕСЯЦ",null,null,"Дата"]
[]
[null,"ИТОГИ","ПЛАНОВЫЕ","ФАКТИЧЕСКИЕ","РАЗНИЦА"]
[null,"Доходы",{"$f":"Доходы[[#Totals],[ПЛАНОВЫЕ]]","v":{"v":63300,"d":"63,300.00"}},{"$f":"Доходы[[#Totals],[ФАКТИЧЕСКИЕ]]","v":{"v":57450,"d":"57,450.00"}},{"$f":"Итоги[[#This Row],[ФАКТИЧЕСКИЕ]]-Итоги[[#This Row],[ПЛАНОВЫЕ]]","v":{"v":-5850,"d":"-5,850.00 "}}]
[null,"Расходы",{"$f":"ОперационныеРасходы[[#Totals],[ПЛАНОВЫЕ]]+РасходыНаПерсонал[[#Totals],[ПЛАНОВЫЕ]]","v":{"v":54500,"d":"54,500.00"}},{"$f":"ОперационныеРасходы[[#Totals],[ФАКТИЧЕСКИЕ]]+РасходыНаПерсонал[[#Totals],[ФАКТИЧЕСКИЕ]]","v":{"v":49630,"d":"49,630.00"}},{"$f":"Итоги[[#This Row],[ПЛАНОВЫЕ]]-Итоги[[#This Row],[ФАКТИЧЕСКИЕ]]","v":{"v":4870,"d":"4,870.00"}}]
[null,"Сальдо (доходы минус расходы)",{"$f":"C5-C6","v":{"v":8800,"d":"8,800.00"}},{"$f":"D5-D6","v":{"v":7820,"d":"7,820.00"}},{"$f":"Итоги[[#Totals],[ФАКТИЧЕСКИЕ]]-Итоги[[#Totals],[ПЛАНОВЫЕ]]","v":{"v":-980,"d":"-980.00 "}}]
[]
[]
[null,"ПЯТЬ ОСНОВНЫХ ОПЕРАЦИОННЫХ РАСХОДОВ"]
[null,"РАСХОДЫ","СУММА","% РАСХОДОВ","15%-е сокращение"]
[null,{"$f":"INDEX(ОперационныеРасходы[],MATCH(ПятьОсновныхРасходов[[#This Row],[СУММА]],ОперационныеРасходы[ПЯТЬ ОСНОВНЫХ СТАТЕЙ],0),1)","v":"Ремонт и техническое обслуживание"},{"$f":"LARGE(ОперационныеРасходы[ПЯТЬ ОСНОВНЫХ СТАТЕЙ],1)","v":{"v":4600.000014,"d":"4,600.00"}},{"$f":"ПятьОсновныхРасходов[[#This Row],[СУММА]]/$D$6","v":{"v":0.09268587576062866,"d":"9.3%"}},{"$f":"ПятьОсновныхРасходов[[#This Row],[СУММА]]*0.15","v":{"v":690.0000021,"d":"690.00"}}]
[null,{"$f":"INDEX(ОперационныеРасходы[],MATCH(ПятьОсновныхРасходов[[#This Row],[СУММА]],ОперационныеРасходы[ПЯТЬ ОСНОВНЫХ СТАТЕЙ],0),1)","v":"Расходные материалы"},{"$f":"LARGE(ОперационныеРасходы[ПЯТЬ ОСНОВНЫХ СТАТЕЙ],2)","v":{"v":4500.00002,"d":"4,500.00"}},{"$f":"ПятьОсновныхРасходов[[#This Row],[СУММА]]/$D$6","v":{"v":0.09067096554503326,"d":"9.1%"}},{"$f":"ПятьОсновныхРасходов[[#This Row],[СУММА]]*0.15","v":{"v":675.000003,"d":"675.00"}}]
[null,{"$f":"INDEX(ОперационныеРасходы[],MATCH(ПятьОсновныхРасходов[[#This Row],[СУММА]],ОперационныеРасходы[ПЯТЬ ОСНОВНЫХ СТАТЕЙ],0),1)","v":"Аренда или ипотека"},{"$f":"LARGE(ОперационныеРасходы[ПЯТЬ ОСНОВНЫХ СТАТЕЙ],3)","v":{"v":4500.000017,"d":"4,500.00"}},{"$f":"ПятьОсновныхРасходов[[#This Row],[СУММА]]/$D$6","v":{"v":0.09067096548458595,"d":"9.1%"}},{"$f":"ПятьОсновныхРасходов[[#This Row],[СУММА]]*0.15","v":{"v":675.00000255,"d":"675.00"}}]
[null,{"$f":"INDEX(ОперационныеРасходы[],MATCH(ПятьОсновныхРасходов[[#This Row],[СУММА]],ОперационныеРасходы[ПЯТЬ ОСНОВНЫХ СТАТЕЙ],0),1)","v":"Налоги"},{"$f":"LARGE(ОперационныеРасходы[ПЯТЬ ОСНОВНЫХ СТАТЕЙ],4)","v":{"v":3200.000021,"d":"3,200.00"}},{"$f":"ПятьОсновныхРасходов[[#This Row],[СУММА]]/$D$6","v":{"v":0.06447713119081201,"d":"6.4%"}},{"$f":"ПятьОсновныхРасходов[[#This Row],[СУММА]]*0.15","v":{"v":480.00000314999994,"d":"480.00"}}]
[null,{"$f":"INDEX(ОперационныеРасходы[],MATCH(ПятьОсновныхРасходов[[#This Row],[СУММА]],ОперационныеРасходы[ПЯТЬ ОСНОВНЫХ СТАТЕЙ],0),1)","v":"Реклама"},{"$f":"LARGE(ОперационныеРасходы[ПЯТЬ ОСНОВНЫХ СТАТЕЙ],5)","v":{"v":2500.000005,"d":"2,500.00"}},{"$f":"ПятьОсновныхРасходов[[#This Row],[СУММА]]/$D$6","v":{"v":0.05037275851299617,"d":"5.0%"}},{"$f":"ПятьОсновныхРасходов[[#This Row],[СУММА]]*0.15","v":{"v":375.00000074999997,"d":"375.00"}}]
[null,"Итого",{"$f":"SUBTOTAL(109,ПятьОсновныхРасходов[СУММА])","v":{"v":19300.000077000004,"d":"19,300.00"}},{"$f":"SUBTOTAL(109,ПятьОсновныхРасходов[% РАСХОДОВ])","v":{"v":0.388877696494056,"d":"38.9%"}},{"$f":"SUBTOTAL(109,ПятьОсновныхРасходов[15%-е сокращение])","v":{"v":2895.0000115499997,"d":"2,895.00"}}]

{"sheet":"Доходы","index":1,"n_rows":8,"n_cols":6,"rows_kept":8}
[null,{"$f":"НАЗВАНИЕ_КОМПАНИИ","v":"НАЗВАНИЕ КОМПАНИИ"}]
[null,{"$f":"БЮДЖЕТ_Заголовок","v":"БЮДЖЕТ НА МЕСЯЦ"}]
[]
[null,"ДОХОДЫ","ПЛАНОВЫЕ","ФАКТИЧЕСКИЕ","ПЯТЬ ОСНОВНЫХ СТАТЕЙ","РАЗНИЦА"]
[null,"Чистая выручка от продаж",{"v":60000,"d":"60,000.00"},{"v":54000,"d":"54,000.00"},{"$f":"Доходы[[#This Row],[ФАКТИЧЕСКИЕ]]+(10^-6)*ROW(Доходы[[#This Row],[ФАКТИЧЕСКИЕ]])","v":{"v":54000.000005,"d":"54,000.00"}},{"$f":"Доходы[[#This Row],[ФАКТИЧЕСКИЕ]]-Доходы[[#This Row],[ПЛАНОВЫЕ]]","v":{"v":-6000,"d":"-6,000.00 "}}]
[null,"Процентный доход",{"v":3000,"d":"3,000.00"},{"v":3000,"d":"3,000.00"},{"$f":"Доходы[[#This Row],[ФАКТИЧЕСКИЕ]]+(10^-6)*ROW(Доходы[[#This Row],[ФАКТИЧЕСКИЕ]])","v":{"v":3000.000006,"d":"3,000.00"}},{"$f":"Доходы[[#This Row],[ФАКТИЧЕСКИЕ]]-Доходы[[#This Row],[ПЛАНОВЫЕ]]","v":{"v":0,"d":"0.00"}}]
[null,"Продажи активов (прибыль/убытки)",{"v":300,"d":"300.00"},{"v":450,"d":"450.00"},{"$f":"Доходы[[#This Row],[ФАКТИЧЕСКИЕ]]+(10^-6)*ROW(Доходы[[#This Row],[ФАКТИЧЕСКИЕ]])","v":{"v":450.000007,"d":"450.00"}},{"$f":"Доходы[[#This Row],[ФАКТИЧЕСКИЕ]]-Доходы[[#This Row],[ПЛАНОВЫЕ]]","v":{"v":150,"d":"150.00"}}]
[null,"Общие доходы",{"$f":"SUBTOTAL(109,Доходы[ПЛАНОВЫЕ])","v":{"v":63300,"d":"63,300.00"}},{"$f":"SUBTOTAL(109,Доходы[ФАКТИЧЕСКИЕ])","v":{"v":57450,"d":"57,450.00"}},null,{"$f":"SUBTOTAL(109,Доходы[РАЗНИЦА])","v":{"v":-5850,"d":"-5,850.00 "}}]

{"sheet":"Расходы на персонал","index":2,"n_rows":8,"n_cols":6,"rows_kept":8}
[null,{"$f":"НАЗВАНИЕ_КОМПАНИИ","v":"НАЗВАНИЕ КОМПАНИИ"}]
[null,{"$f":"БЮДЖЕТ_Заголовок","v":"БЮДЖЕТ НА МЕСЯЦ"}]
[]
[null,"РАСХОДЫ НА ПЕРСОНАЛ","ПЛАНОВЫЕ","ФАКТИЧЕСКИЕ","ПЯТЬ ОСНОВНЫХ СТАТЕЙ","РАЗНИЦА"]
[null,"Зарплата",{"v":9500,"d":"9,500.00"},{"v":9600,"d":"9,600.00"},{"$f":"РасходыНаПерсонал[[#This Row],[ФАКТИЧЕСКИЕ]]+(10^-6)*ROW(РасходыНаПерсонал[[#This Row],[ФАКТИЧЕСКИЕ]])","v":{"v":9600.000005,"d":"9,600.00"}},{"$f":"РасходыНаПерсонал[[#This Row],[ПЛАНОВЫЕ]]-РасходыНаПерсонал[[#This Row],[ФАКТИЧЕСКИЕ]]","v":{"v":-100,"d":"-100.00 "}}]
[null,"Выплаты сотрудникам",{"v":4000,"d":"4,000.00"},{"v":0,"d":"0.00"},{"$f":"РасходыНаПерсонал[[#This Row],[ФАКТИЧЕСКИЕ]]+(10^-6)*ROW(РасходыНаПерсонал[[#This Row],[ФАКТИЧЕСКИЕ]])","v":{"v":6e-06,"d":"0.00"}},{"$f":"РасходыНаПерсонал[[#This Row],[ПЛАНОВЫЕ]]-РасходыНаПерсонал[[#This Row],[ФАКТИЧЕСКИЕ]]","v":{"v":4000,"d":"4,000.00"}}]
[null,"Комиссионные",{"v":5000,"d":"5,000.00"},{"v":4500,"d":"4,500.00"},{"$f":"РасходыНаПерсонал[[#This Row],[ФАКТИЧЕСКИЕ]]+(10^-6)*ROW(РасходыНаПерсонал[[#This Row],[ФАКТИЧЕСКИЕ]])","v":{"v":4500.000007,"d":"4,500.00"}},{"$f":"РасходыНаПерсонал[[#This Row],[ПЛАНОВЫЕ]]-РасходыНаПерсонал[[#This Row],[ФАКТИЧЕСКИЕ]]","v":{"v":500,"d":"500.00"}}]
[null,"ОСНОВНЫЕ РАСХОДЫ НА ПЕРСОНАЛ",{"$f":"SUBTOTAL(109,РасходыНаПерсонал[ПЛАНОВЫЕ])","v":{"v":18500,"d":"18,500.00"}},{"$f":"SUBTOTAL(109,РасходыНаПерсонал[ФАКТИЧЕСКИЕ])","v":{"v":14100,"d":"14,100.00"}},null,{"$f":"SUBTOTAL(109,РасходыНаПерсонал[РАЗНИЦА])","v":{"v":4400,"d":"4,400.00"}}]

{"sheet":"Операционные расходы","index":3,"n_rows":25,"n_cols":6,"rows_kept":25}
[null,{"$f":"НАЗВАНИЕ_КОМПАНИИ","v":"НАЗВАНИЕ КОМПАНИИ"}]
[null,{"$f":"БЮДЖЕТ_Заголовок","v":"БЮДЖЕТ НА МЕСЯЦ"}]
[]
[null,"ОПЕРАЦИОННЫЕ РАСХОДЫ","ПЛАНОВЫЕ","ФАКТИЧЕСКИЕ","ПЯТЬ ОСНОВНЫХ СТАТЕЙ","РАЗНИЦА"]
[null,"Реклама",{"v":3000,"d":"3,000.00"},{"v":2500,"d":"2,500.00"},{"$f":"ОперационныеРасходы[[#This Row],[ФАКТИЧЕСКИЕ]]+(10^-6)*ROW(ОперационныеРасходы[[#This Row],[ФАКТИЧЕСКИЕ]])","v":{"v":2500.000005,"d":"2,500.00"}},{"$f":"ОперационныеРасходы[[#This Row],[ПЛАНОВЫЕ]]-ОперационныеРасходы[[#This Row],[ФАКТИЧЕСКИЕ]]","v":{"v":500,"d":"500.00"}}]
[null,"Безнадежная задолженность",{"v":2000,"d":"2,000.00"},{"v":2000,"d":"2,000.00"},{"$f":"ОперационныеРасходы[[#This Row],[ФАКТИЧЕСКИЕ]]+(10^-6)*ROW(ОперационныеРасходы[[#This Row],[ФАКТИЧЕСКИЕ]])","v":{"v":2000.000006,"d":"2,000.00"}},{"$f":"ОперационныеРасходы[[#This Row],[ПЛАНОВЫЕ]]-ОперационныеРасходы[[#This Row],[ФАКТИЧЕСКИЕ]]","v":{"v":0,"d":"0.00"}}]
[null,"Скидки за оплату наличными",{"v":1500,"d":"1,500.00"},{"v":2175,"d":"2,175.00"},{"$f":"ОперационныеРасходы[[#This Row],[ФАКТИЧЕСКИЕ]]+(10^-6)*ROW(ОперационныеРасходы[[#This Row],[ФАКТИЧЕСКИЕ]])","v":{"v":2175.000007,"d":"2,175.00"}},{"$f":"ОперационныеРасходы[[#This Row],[ПЛАНОВЫЕ]]-ОперационныеРасходы[[#This Row],[ФАКТИЧЕСКИЕ]]","v":{"v":-675,"d":"-675.00 "}}]
[null,"Стоимость доставки",{"v":2000,"d":"2,000.00"},{"v":1500,"d":"1,500.00"},{"$f":"ОперационныеРасходы[[#This Row],[ФАКТИЧЕСКИЕ]]+(10^-6)*ROW(ОперационныеРасходы[[#This Row],[ФАКТИЧЕСКИЕ]])","v":{"v":1500.000008,"d":"1,500.00"}},{"$f":"ОперационныеРасходы[[#This Row],[ПЛАНОВЫЕ]]-ОперационныеРасходы[[#This Row],[ФАКТИЧЕСКИЕ]]","v":{"v":500,"d":"500.00"}}]
[null,"Амортизация",{"v":1000,"d":"1,000.00"},{"v":1000,"d":"1,000.00"},{"$f":"ОперационныеРасходы[[#This Row],[ФАКТИЧЕСКИЕ]]+(10^-6)*ROW(ОперационныеРасходы[[#This Row],[ФАКТИЧЕСКИЕ]])","v":{"v":1000.000009,"d":"1,000.00"}},{"$f":"ОперационныеРасходы[[#This Row],[ПЛАНОВЫЕ]]-ОперационныеРасходы[[#This Row],[ФАКТИЧЕСКИЕ]]","v":{"v":0,"d":"0.00"}}]
[null,"Сборы и платежи",{"v":500,"d":"500.00"},{"v":525,"d":"525.00"},{"$f":"ОперационныеРасходы[[#This Row],[ФАКТИЧЕСКИЕ]]+(10^-6)*ROW(ОперационныеРасходы[[#This Row],[ФАКТИЧЕСКИЕ]])","v":{"v":525.00001,"d":"525.00"}},{"$f":"ОперационныеРасходы[[#This Row],[ПЛАНОВЫЕ]]-ОперационныеРасходы[[#This Row],[ФАКТИЧЕСКИЕ]]","v":{"v":-25,"d":"-25.00 "}}]
[null,"Страхование",{"v":1300,"d":"1,300.00"},{"v":1275,"d":"1,275.00"},{"$f":"ОперационныеРасходы[[#This Row],[ФАКТИЧЕСКИЕ]]+(10^-6)*ROW(ОперационныеРасходы[[#This Row],[ФАКТИЧЕСКИЕ]])","v":{"v":1275.000011,"d":"1,275.00"}},{"$f":"ОперационныеРасходы[[#This Row],[ПЛАНОВЫЕ]]-ОперационныеРасходы[[#This Row],[ФАКТИЧЕСКИЕ]]","v":{"v":25,"d":"25.00"}}]
[null,"Проценты",{"v":2000,"d":"2,000.00"},{"v":2200,"d":"2,200.00"},{"$f":"ОперационныеРасходы[[#This Row],[ФАКТИЧЕСКИЕ]]+(10^-6)*ROW(ОперационныеРасходы[[#This Row],[ФАКТИЧЕСКИЕ]])","v":{"v":2200.000012,"d":"2,200.00"}},{"$f":"ОперационныеРасходы[[#This Row],[ПЛАНОВЫЕ]]-ОперационныеРасходы[[#This Row],[ФАКТИЧЕСКИЕ]]","v":{"v":-200,"d":"-200.00 "}}]
[null,"Юридические услуги и аудит",{"v":1000,"d":"1,000.00"},{"v":800,"d":"800.00"},{"$f":"ОперационныеРасходы[[#This Row],[ФАКТИЧЕСКИЕ]]+(10^-6)*ROW(ОперационныеРасходы[[#This Row],[ФАКТИЧЕСКИЕ]])","v":{"v":800.000013,"d":"800.00"}},{"$f":"ОперационныеРасходы[[#This Row],[ПЛАНОВЫЕ]]-ОперационныеРасходы[[#This Row],[ФАКТИЧЕСКИЕ]]","v":{"v":200,"d":"200.00"}}]
[null,"Ремонт и техническое обслуживание",{"v":4500,"d":"4,500.00"},{"v":4600,"d":"4,600.00"},{"$f":"ОперационныеРасходы[[#This Row],[ФАКТИЧЕСКИЕ]]+(10^-6)*ROW(ОперационныеРасходы[[#This Row],[ФАКТИЧЕСКИЕ]])","v":{"v":4600.000014,"d":"4,600.00"}},{"$f":"ОперационныеРасходы[[#This Row],[ПЛАНОВЫЕ]]-ОперационныеРасходы[[#This Row],[ФАКТИЧЕСКИЕ]]","v":{"v":-100,"d":"-100.00 "}}]
[null,"Канцтовары",{"v":800,"d":"800.00"},{"v":750,"d":"750.00"},{"$f":"ОперационныеРасходы[[#This Row],[ФАКТИЧЕСКИЕ]]+(10^-6)*ROW(ОперационныеРасходы[[#This Row],[ФАКТИЧЕСКИЕ]])","v":{"v":750.000015,"d":"750.00"}},{"$f":"ОперационныеРасходы[[#This Row],[ПЛАНОВЫЕ]]-ОперационныеРасходы[[#This Row],[ФАКТИЧЕСКИЕ]]","v":{"v":50,"d":"50.00"}}]
[null,"Почтовые расходы",{"v":400,"d":"400.00"},{"v":350,"d":"350.00"},{"$f":"ОперационныеРасходы[[#This Row],[ФАКТИЧЕСКИЕ]]+(10^-6)*ROW(ОперационныеРасходы[[#This Row],[ФАКТИЧЕСКИЕ]])","v":{"v":350.000016,"d":"350.00"}},{"$f":"ОперационныеРасходы[[#This Row],[ПЛАНОВЫЕ]]-ОперационныеРасходы[[#This Row],[ФАКТИЧЕСКИЕ]]","v":{"v":50,"d":"50.00"}}]
[null,"Аренда или ипотека",{"v":4100,"d":"4,100.00"},{"v":4500,"d":"4,500.00"},{"$f":"ОперационныеРасходы[[#This Row],[ФАКТИЧЕСКИЕ]]+(10^-6)*ROW(ОперационныеРасходы[[#This Row],[ФАКТИЧЕСКИЕ]])","v":{"v":4500.000017,"d":"4,500.00"}},{"$f":"ОперационныеРасходы[[#This Row],[ПЛАНОВЫЕ]]-ОперационныеРасходы[[#This Row],[ФАКТИЧЕСКИЕ]]","v":{"v":-400,"d":"-400.00 "}}]
[null,"Расходы на продажи",{"v":350,"d":"350.00"},{"v":400,"d":"400.00"},{"$f":"ОперационныеРасходы[[#This Row],[ФАКТИЧЕСКИЕ]]+(10^-6)*ROW(ОперационныеРасходы[[#This Row],[ФАКТИЧЕСКИЕ]])","v":{"v":400.000018,"d":"400.00"}},{"$f":"ОперационныеРасходы[[#This Row],[ПЛАНОВЫЕ]]-ОперационныеРасходы[[#This Row],[ФАКТИЧЕСКИЕ]]","v":{"v":-50,"d":"-50.00 "}}]
[null,"Доставка и хранение",{"v":900,"d":"900.00"},{"v":840,"d":"840.00"},{"$f":"ОперационныеРасходы[[#This Row],[ФАКТИЧЕСКИЕ]]+(10^-6)*ROW(ОперационныеРасходы[[#This Row],[ФАКТИЧЕСКИЕ]])","v":{"v":840.000019,"d":"840.00"}},{"$f":"ОперационныеРасходы[[#This Row],[ПЛАНОВЫЕ]]-ОперационныеРасходы[[#This Row],[ФАКТИЧЕСКИЕ]]","v":{"v":60,"d":"60.00"}}]
[null,"Расходные материалы",{"v":5000,"d":"5,000.00"},{"v":4500,"d":"4,500.00"},{"$f":"ОперационныеРасходы[[#This Row],[ФАКТИЧЕСКИЕ]]+(10^-6)*ROW(ОперационныеРасходы[[#This Row],[ФАКТИЧЕСКИЕ]])","v":{"v":4500.00002,"d":"4,500.00"}},{"$f":"ОперационныеРасходы[[#This Row],[ПЛАНОВЫЕ]]-ОперационныеРасходы[[#This Row],[ФАКТИЧЕСКИЕ]]","v":{"v":500,"d":"500.00"}}]
[null,"Налоги",{"v":3000,"d":"3,000.00"},{"v":3200,"d":"3,200.00"},{"$f":"ОперационныеРасходы[[#This Row],[ФАКТИЧЕСКИЕ]]+(10^-6)*ROW(ОперационныеРасходы[[#This Row],[ФАКТИЧЕСКИЕ]])","v":{"v":3200.000021,"d":"3,200.00"}},{"$f":"ОперационныеРасходы[[#This Row],[ПЛАНОВЫЕ]]-ОперационныеРасходы[[#This Row],[ФАКТИЧЕСКИЕ]]","v":{"v":-200,"d":"-200.00 "}}]
[null,"Телефонная связь",{"v":250,"d":"250.00"},{"v":280,"d":"280.00"},{"$f":"ОперационныеРасходы[[#This Row],[ФАКТИЧЕСКИЕ]]+(10^-6)*ROW(ОперационныеРасходы[[#This Row],[ФАКТИЧЕСКИЕ]])","v":{"v":280.000022,"d":"280.00"}},{"$f":"ОперационныеРасходы[[#This Row],[ПЛАНОВЫЕ]]-ОперационныеРасходы[[#This Row],[ФАКТИЧЕСКИЕ]]","v":{"v":-30,"d":"-30.00 "}}]
[null,"Коммунальные услуги",{"v":1400,"d":"1,400.00"},{"v":1385,"d":"1,385.00"},{"$f":"ОперационныеРасходы[[#This Row],[ФАКТИЧЕСКИЕ]]+(10^-6)*ROW(ОперационныеРасходы[[#This Row],[ФАКТИЧЕСКИЕ]])","v":{"v":1385.000023,"d":"1,385.00"}},{"$f":"ОперационныеРасходы[[#This Row],[ПЛАНОВЫЕ]]-ОперационныеРасходы[[#This Row],[ФАКТИЧЕСКИЕ]]","v":{"v":15,"d":"15.00"}}]
[null,"Другое",{"v":1000,"d":"1,000.00"},{"v":750,"d":"750.00"},{"$f":"ОперационныеРасходы[[#This Row],[ФАКТИЧЕСКИЕ]]+(10^-6)*ROW(ОперационныеРасходы[[#This Row],[ФАКТИЧЕСКИЕ]])","v":{"v":750.000024,"d":"750.00"}},{"$f":"ОперационныеРасходы[[#This Row],[ПЛАНОВЫЕ]]-ОперационныеРасходы[[#This Row],[ФАКТИЧЕСКИЕ]]","v":{"v":250,"d":"250.00"}}]
[null,"Общие операционные расходы",{"$f":"SUBTOTAL(109,ОперационныеРасходы[ПЛАНОВЫЕ])","v":{"v":36000,"d":"36,000.00"}},{"$f":"SUBTOTAL(109,ОперационныеРасходы[ФАКТИЧЕСКИЕ])","v":{"v":35530,"d":"35,530.00"}},null,{"$f":"SUBTOTAL(109,ОперационныеРасходы[РАЗНИЦА])","v":{"v":470,"d":"470.00"}}]